[Event "*** SCC Grand Prix: Titled Tuesday Blitz"]
[Site "Chess.com"]
[Date "2020.06.23"]
[Round "7"]
[White "Walter_White_Poland"]
[Black "dodorox"]
[Result "1-0"]
[WhiteElo "2210"]
[BlackElo "2037"]
[TimeControl "180+1"]
[EndTime "11:17:49 PDT"]
[Termination "Walter_White_Poland won on time"]

1. e4 {[%clk 0:03:00.9]} 1... e6 {[%clk 0:02:59.8]} 2. d4 {[%clk 0:02:59.5]}
2... d5 {[%clk 0:02:59.6]} 3. Nc3 {[%clk 0:02:58.7]} 3... Nf6 {[%clk 0:02:59.1]}
4. Bg5 {[%clk 0:02:55.1]} 4... dxe4 {[%clk 0:02:58.6]} 5. Nxe4 {[%clk
0:02:54.4]} 5... Be7 {[%clk 0:02:58.5]} 6. Bxf6 {[%clk 0:02:54.7]} 6... gxf6
{[%clk 0:02:59.2]} 7. Nf3 {[%clk 0:02:55.2]} 7... f5 {[%clk 0:02:59.8]} 8. Nc5
{[%clk 0:02:54.6]} 8... Bxc5 {[%clk 0:02:56.7]} 9. dxc5 {[%clk 0:02:54.7]} 9...
Qxd1+ {[%clk 0:02:55.5]} 10. Rxd1 {[%clk 0:02:54.7]} 10... Nd7 {[%clk
0:02:52.3]} 11. c6 {[%clk 0:02:54.4]} 11... bxc6 {[%clk 0:02:48.3]} 12. g3
{[%clk 0:02:51.5]} 12... Rb8 {[%clk 0:02:42.2]} 13. b3 {[%clk 0:02:50.8]} 13...
Bb7 {[%clk 0:02:08]} 14. Bg2 {[%clk 0:02:33.5]} 14... c5 {[%clk 0:02:03.9]} 15.
O-O {[%clk 0:02:30.5]} 15... Nf6 {[%clk 0:01:57.8]} 16. Ne5 {[%clk 0:01:57.4]}
16... Bxg2 {[%clk 0:01:56.9]} 17. Kxg2 {[%clk 0:01:58.3]} 17... O-O {[%clk
0:01:30.8]} 18. Nd7 {[%clk 0:01:24.5]} 18... Nxd7 {[%clk 0:01:27.6]} 19. Rxd7
{[%clk 0:01:24.4]} 19... Rfc8 {[%clk 0:01:22.4]} 20. Re1 {[%clk 0:01:13.6]}
20... Kf8 {[%clk 0:01:12.6]} 21. Re5 {[%clk 0:01:12.9]} 21... c4 {[%clk
0:01:03.3]} 22. Rc5 {[%clk 0:01:08]} 22... cxb3 {[%clk 0:00:58.4]} 23. axb3
{[%clk 0:01:07.4]} 23... Rb7 {[%clk 0:00:58.2]} 24. Rd4 {[%clk 0:01:01.2]} 24...
Ke8 {[%clk 0:00:52.7]} 25. Kf3 {[%clk 0:01:00.5]} 25... Rd8 {[%clk 0:00:49.9]}
26. Rh4 {[%clk 0:00:56.9]} 26... Ke7 {[%clk 0:00:40.3]} 27. Rxh7 {[%clk
0:00:56.5]} 27... Kf6 {[%clk 0:00:25.2]} 28. Rh4 {[%clk 0:00:53.7]} 28... Rc8
{[%clk 0:00:14.4]} 29. Rhc4 {[%clk 0:00:52.3]} 29... Rh8 {[%clk 0:00:13.7]} 30.
h4 {[%clk 0:00:50.7]} 30... Rc8 {[%clk 0:00:12.9]} 31. Rc6 {[%clk 0:00:49.9]}
31... Ke7 {[%clk 0:00:11]} 32. Kf4 {[%clk 0:00:47.6]} 32... Kf6 {[%clk
0:00:08.8]} 33. b4 {[%clk 0:00:37.8]} 33... Ke7 {[%clk 0:00:08.1]} 34. c3 {[%clk
0:00:37.1]} 34... Kf6 {[%clk 0:00:08.2]} 35. R4c5 {[%clk 0:00:37.1]} 35... Ke7
{[%clk 0:00:08.3]} 36. f3 {[%clk 0:00:34.9]} 36... Kf6 {[%clk 0:00:08.4]} 37. g4
{[%clk 0:00:34.3]} 37... fxg4 {[%clk 0:00:08.4]} 38. fxg4 {[%clk 0:00:34.8]}
38... Ke7 {[%clk 0:00:08.5]} 39. g5 {[%clk 0:00:30.2]} 39... Kd7 {[%clk
0:00:05.3]} 40. h5 {[%clk 0:00:28]} 40... Rh8 {[%clk 0:00:05.3]} 41. h6 {[%clk
0:00:27.6]} 41... Rb6 {[%clk 0:00:05.1]} 42. Rxc7+ {[%clk 0:00:24.9]} 42... Kd6
{[%clk 0:00:05.3]} 43. Rc8 {[%clk 0:00:23.4]} 43... Rh7 {[%clk 0:00:02.8]} 44.
Rd8+ {[%clk 0:00:20.5]} 44... Ke7 {[%clk 0:00:02.5]} 45. Ra8 {[%clk 0:00:20.5]}
1-0

[Event "*** SCC Grand Prix: Titled Tuesday Blitz"]
[Site "Chess.com"]
[Date "2020.06.23"]
[Round "7"]
[White "Igor_Lysyj"]
[Black "GMBenjaminBok"]
[Result "1-0"]
[WhiteElo "2784"]
[BlackElo "2844"]
[TimeControl "180+1"]
[EndTime "11:17:50 PDT"]
[Termination "Igor_Lysyj won by checkmate"]

1. d4 {[%clk 0:03:00]} 1... d5 {[%clk 0:02:57.7]} 2. c4 {[%clk 0:02:59.5]} 2...
c6 {[%clk 0:02:58.3]} 3. Nf3 {[%clk 0:02:58.9]} 3... Nf6 {[%clk 0:02:58.7]} 4.
g3 {[%clk 0:02:58.7]} 4... dxc4 {[%clk 0:02:57.9]} 5. Bg2 {[%clk 0:02:57.6]}
5... g6 {[%clk 0:02:58.4]} 6. O-O {[%clk 0:02:52.7]} 6... Bg7 {[%clk 0:02:57.5]}
7. a4 {[%clk 0:02:52]} 7... Ne4 {[%clk 0:02:56.8]} 8. Nc3 {[%clk 0:02:51.1]}
8... Nd6 {[%clk 0:02:23.7]} 9. e4 {[%clk 0:02:49.1]} 9... Bg4 {[%clk 0:02:22.7]}
10. Be3 {[%clk 0:02:47.7]} 10... O-O {[%clk 0:02:22]} 11. h3 {[%clk 0:02:44.8]}
11... Bxf3 {[%clk 0:02:21.5]} 12. Qxf3 {[%clk 0:02:43.9]} 12... Na6 {[%clk
0:01:54.4]} 13. Qe2 {[%clk 0:02:43.4]} 13... Nb4 {[%clk 0:01:46]} 14. Rad1
{[%clk 0:02:31.6]} 14... a5 {[%clk 0:01:44.3]} 15. g4 {[%clk 0:02:27.9]} 15...
e6 {[%clk 0:00:50.8]} 16. e5 {[%clk 0:02:16.4]} 16... Nc8 {[%clk 0:00:50.6]} 17.
Qxc4 {[%clk 0:02:10]} 17... Nb6 {[%clk 0:00:51.1]} 18. Qe2 {[%clk 0:02:04]}
18... N6d5 {[%clk 0:00:48.3]} 19. Bc1 {[%clk 0:02:02.7]} 19... Qb6 {[%clk
0:00:34.2]} 20. Ne4 {[%clk 0:02:01.1]} 20... Qa6 {[%clk 0:00:32.4]} 21. Qd2
{[%clk 0:01:49]} 21... Rfd8 {[%clk 0:00:28.5]} 22. Nc5 {[%clk 0:01:43.2]} 22...
Qc4 {[%clk 0:00:19]} 23. Rfe1 {[%clk 0:01:41.3]} 23... b6 {[%clk 0:00:17.5]} 24.
Ne4 {[%clk 0:01:35.1]} 24... Qc2 {[%clk 0:00:15.8]} 25. Qxc2 {[%clk 0:00:55.8]}
25... Nxc2 {[%clk 0:00:16.7]} 26. Re2 {[%clk 0:00:55.9]} 26... Ncb4 {[%clk
0:00:10.4]} 27. Bg5 {[%clk 0:00:53.7]} 27... Rd7 {[%clk 0:00:09.5]} 28. Nd6
{[%clk 0:00:38.5]} 28... Bf8 {[%clk 0:00:09.3]} 29. Nc4 {[%clk 0:00:33.8]} 29...
Rc8 {[%clk 0:00:08.1]} 30. Be4 {[%clk 0:00:26.2]} 30... h6 {[%clk 0:00:07.5]}
31. Bd2 {[%clk 0:00:24.8]} 31... Rb8 {[%clk 0:00:06.3]} 32. Rc1 {[%clk
0:00:23.5]} 32... c5 {[%clk 0:00:05.9]} 33. dxc5 {[%clk 0:00:22.2]} 33... Bxc5
{[%clk 0:00:06.4]} 34. Bxh6 {[%clk 0:00:21.2]} 34... Bd4 {[%clk 0:00:04.7]} 35.
Bg5 {[%clk 0:00:19.3]} 35... Rc7 {[%clk 0:00:03.9]} 36. b3 {[%clk 0:00:18.7]}
36... b5 {[%clk 0:00:03.7]} 37. axb5 {[%clk 0:00:17.7]} 37... Rxb5 {[%clk
0:00:04.2]} 38. Rd1 {[%clk 0:00:15.8]} 38... Nc3 {[%clk 0:00:03.7]} 39. Red2
{[%clk 0:00:13.5]} 39... Nxd1 {[%clk 0:00:02.9]} 40. Rxd4 {[%clk 0:00:13.3]}
40... Nc3 {[%clk 0:00:03.5]} 41. Rd8+ {[%clk 0:00:12.8]} 41... Kh7 {[%clk
0:00:02.9]} 42. Bf6 {[%clk 0:00:13]} 42... Nxe4 {[%clk 0:00:02]} 43. Rh8# {[%clk
0:00:12.1]} 1-0

[Event "*** SCC Grand Prix: Titled Tuesday Blitz"]
[Site "Chess.com"]
[Date "2020.06.23"]
[Round "7"]
[White "Lector118"]
[Black "theblitzchamp"]
[Result "0-1"]
[WhiteElo "2476"]
[BlackElo "2655"]
[TimeControl "180+1"]
[EndTime "11:17:54 PDT"]
[Termination "theblitzchamp won on time"]

1. d4 {[%clk 0:03:00.9]} 1... Nf6 {[%clk 0:02:59.4]} 2. c4 {[%clk 0:03:00.4]}
2... g6 {[%clk 0:02:59.2]} 3. Nc3 {[%clk 0:03:00]} 3... Bg7 {[%clk 0:02:59.6]}
4. e4 {[%clk 0:02:59.7]} 4... d6 {[%clk 0:03:00.1]} 5. Nf3 {[%clk 0:03:00.3]}
5... O-O {[%clk 0:03:00.3]} 6. Be2 {[%clk 0:03:01]} 6... e5 {[%clk 0:03:00.7]}
7. d5 {[%clk 0:03:01.1]} 7... a5 {[%clk 0:02:56.8]} 8. Bg5 {[%clk 0:02:59.6]}
8... Na6 {[%clk 0:02:56.1]} 9. Nd2 {[%clk 0:02:58]} 9... c6 {[%clk 0:02:53.9]}
10. O-O {[%clk 0:02:53.5]} 10... Nc5 {[%clk 0:02:51.5]} 11. b3 {[%clk
0:02:51.4]} 11... Qc7 {[%clk 0:02:45.2]} 12. a3 {[%clk 0:02:44.1]} 12... Ne8
{[%clk 0:02:34.5]} 13. b4 {[%clk 0:02:33.7]} 13... Na6 {[%clk 0:02:34.2]} 14.
Nb3 {[%clk 0:02:01.1]} 14... h6 {[%clk 0:02:12.8]} 15. Be3 {[%clk 0:01:58.4]}
15... axb4 {[%clk 0:02:06.8]} 16. axb4 {[%clk 0:01:56.5]} 16... Rb8 {[%clk
0:01:48.9]} 17. b5 {[%clk 0:01:49.5]} 17... Nb4 {[%clk 0:01:42.3]} 18. dxc6
{[%clk 0:01:39.2]} 18... bxc6 {[%clk 0:01:40.6]} 19. b6 {[%clk 0:01:27.7]} 19...
Qd7 {[%clk 0:01:29.1]} 20. Ra7 {[%clk 0:01:14.2]} 20... Rb7 {[%clk 0:01:28]} 21.
c5 {[%clk 0:01:08.6]} 21... d5 {[%clk 0:00:49.1]} 22. exd5 {[%clk 0:01:02.5]}
22... Nxd5 {[%clk 0:00:47.6]} 23. Rxb7 {[%clk 0:00:50.9]} 23... Bxb7 {[%clk
0:00:47.3]} 24. Na5 {[%clk 0:00:37.5]} 24... Nef6 {[%clk 0:00:46.7]} 25. Nxd5
{[%clk 0:00:34.3]} 25... Nxd5 {[%clk 0:00:46.3]} 26. Nxb7 {[%clk 0:00:31.9]}
26... Qxb7 {[%clk 0:00:45.8]} 27. Bc4 {[%clk 0:00:31.1]} 27... Rd8 {[%clk
0:00:43.2]} 28. Qb3 {[%clk 0:00:26]} 28... Bf8 {[%clk 0:00:41]} 29. Ra1 {[%clk
0:00:21.6]} 29... Nxe3 {[%clk 0:00:24.9]} 30. Qxe3 {[%clk 0:00:20.4]} 30... Qe7
{[%clk 0:00:20.9]} 31. h3 {[%clk 0:00:14.6]} 31... Qxc5 {[%clk 0:00:20.3]} 32.
Qxc5 {[%clk 0:00:14.7]} 32... Bxc5 {[%clk 0:00:21.2]} 33. b7 {[%clk 0:00:15.3]}
33... Rb8 {[%clk 0:00:21]} 34. Ra8 {[%clk 0:00:14.2]} 34... Bd6 {[%clk
0:00:21.1]} 35. Rxb8+ {[%clk 0:00:09]} 35... Bxb8 {[%clk 0:00:20.8]} 36. f3
{[%clk 0:00:09.9]} 36... Kf8 {[%clk 0:00:20.7]} 37. Kf2 {[%clk 0:00:10]} 37...
f5 {[%clk 0:00:20.8]} 38. Ke3 {[%clk 0:00:10.6]} 38... Ke7 {[%clk 0:00:21.1]}
39. g4 {[%clk 0:00:11.1]} 39... Kd6 {[%clk 0:00:18.7]} 40. h4 {[%clk 0:00:10.7]}
40... Ba7+ {[%clk 0:00:14.3]} 41. Ke2 {[%clk 0:00:09.2]} 41... e4 {[%clk
0:00:13.8]} 42. gxf5 {[%clk 0:00:02.5]} 42... gxf5 {[%clk 0:00:13.6]} 43. fxe4
{[%clk 0:00:02]} 43... fxe4 {[%clk 0:00:14.5]} 0-1

[Event "*** SCC Grand Prix: Titled Tuesday Blitz"]
[Site "Chess.com"]
[Date "2020.06.23"]
[Round "7"]
[White "Grieve72"]
[Black "CarlssonLudvig"]
[Result "1-0"]
[WhiteElo "2256"]
[BlackElo "2424"]
[TimeControl "180+1"]
[EndTime "11:17:54 PDT"]
[Termination "Grieve72 won on time"]

1. e4 {[%clk 0:03:00.9]} 1... c5 {[%clk 0:02:58.9]} 2. Nf3 {[%clk 0:02:59.8]}
2... d6 {[%clk 0:02:59]} 3. d4 {[%clk 0:03:00]} 3... cxd4 {[%clk 0:02:59.9]} 4.
Nxd4 {[%clk 0:03:00.9]} 4... Nf6 {[%clk 0:03:00]} 5. Nc3 {[%clk 0:03:01.5]} 5...
a6 {[%clk 0:03:00.6]} 6. f3 {[%clk 0:03:01.6]} 6... e5 {[%clk 0:02:59.7]} 7. Nb3
{[%clk 0:03:01.2]} 7... Be7 {[%clk 0:02:57.6]} 8. Be3 {[%clk 0:03:01.3]} 8...
Be6 {[%clk 0:02:54.2]} 9. Qd2 {[%clk 0:03:01.4]} 9... d5 {[%clk 0:02:54]} 10.
exd5 {[%clk 0:02:57.9]} 10... Nxd5 {[%clk 0:02:53.9]} 11. Nxd5 {[%clk
0:02:50.4]} 11... Qxd5 {[%clk 0:02:53.3]} 12. Bd3 {[%clk 0:02:38.4]} 12... Nc6
{[%clk 0:02:48.9]} 13. O-O {[%clk 0:02:20.8]} 13... O-O {[%clk 0:02:45.3]} 14.
Rfd1 {[%clk 0:02:16.7]} 14... Rad8 {[%clk 0:02:42.4]} 15. Qf2 {[%clk 0:02:07.1]}
15... Bf5 {[%clk 0:02:29.1]} 16. Qg3 {[%clk 0:01:30.6]} 16... e4 {[%clk
0:02:20.3]} 17. Bxe4 {[%clk 0:01:03.8]} 17... Qxd1+ {[%clk 0:02:19.2]} 18. Rxd1
{[%clk 0:01:04.7]} 18... Rxd1+ {[%clk 0:02:19]} 19. Kf2 {[%clk 0:01:05.4]} 19...
Bxe4 {[%clk 0:02:17.7]} 20. fxe4 {[%clk 0:01:05.6]} 20... Bd6 {[%clk 0:01:59.3]}
21. Qg4 {[%clk 0:00:54.5]} 21... Rb1 {[%clk 0:01:45.8]} 22. Bc1 {[%clk
0:00:24.9]} 22... Ne5 {[%clk 0:01:41.6]} 23. Qe2 {[%clk 0:00:19.8]} 23... a5
{[%clk 0:01:34.2]} 24. a4 {[%clk 0:00:16.5]} 24... b6 {[%clk 0:01:31.7]} 25. c3
{[%clk 0:00:16.3]} 25... Bc5+ {[%clk 0:01:27]} 26. Kg3 {[%clk 0:00:06.3]} 26...
Bd6 {[%clk 0:01:05.2]} 27. Kh3 {[%clk 0:00:06.7]} 27... Re8 {[%clk 0:00:19]} 28.
Qc2 {[%clk 0:00:06.6]} 28... Rxc1 {[%clk 0:00:15.6]} 29. Qxc1 {[%clk 0:00:07.5]}
29... Re6 {[%clk 0:00:14.8]} 30. g3 {[%clk 0:00:06.5]} 30... Rh6+ {[%clk
0:00:11.2]} 31. Kg2 {[%clk 0:00:06.7]} 31... Ng4 {[%clk 0:00:11]} 32. h3 {[%clk
0:00:07.1]} 32... Ne5 {[%clk 0:00:09.3]} 33. Nd4 {[%clk 0:00:07.6]} 33... Rf6
{[%clk 0:00:07.7]} 34. Nf5 {[%clk 0:00:07.3]} 34... Bc5 {[%clk 0:00:07.2]} 35.
Qg5 {[%clk 0:00:06.9]} 35... Bf8 {[%clk 0:00:04]} 36. h4 {[%clk 0:00:02.3]}
36... Kh8 {[%clk 0:00:03.3]} 37. Qd2 {[%clk 0:00:02.5]} 37... g6 {[%clk
0:00:02.5]} 38. Nd4 {[%clk 0:00:02]} 38... Rd6 {[%clk 0:00:02.3]} 39. Qg5 {[%clk
0:00:02.2]} 39... Bg7 {[%clk 0:00:02]} 40. Qe7 {[%clk 0:00:01.7]} 1-0

[Event "*** SCC Grand Prix: Titled Tuesday Blitz"]
[Site "Chess.com"]
[Date "2020.06.23"]
[Round "7"]
[White "PowerThinking2650"]
[Black "Michaelson_11"]
[Result "0-1"]
[WhiteElo "2309"]
[BlackElo "2086"]
[TimeControl "180+1"]
[EndTime "11:17:55 PDT"]
[Termination "Michaelson_11 won on time"]

1. e4 {[%clk 0:03:00.9]} 1... c5 {[%clk 0:02:59.3]} 2. Nf3 {[%clk 0:03:00.2]}
2... Nc6 {[%clk 0:03:00.2]} 3. d4 {[%clk 0:03:00.3]} 3... cxd4 {[%clk
0:03:01.1]} 4. Nxd4 {[%clk 0:03:00.3]} 4... e6 {[%clk 0:03:01.8]} 5. Nb5 {[%clk
0:02:58.7]} 5... d6 {[%clk 0:02:39.5]} 6. c4 {[%clk 0:02:57.9]} 6... Nf6 {[%clk
0:02:32.2]} 7. N1c3 {[%clk 0:02:57.6]} 7... a6 {[%clk 0:02:28.7]} 8. Na3 {[%clk
0:02:53.1]} 8... Be7 {[%clk 0:02:24.3]} 9. Be2 {[%clk 0:02:51.7]} 9... O-O
{[%clk 0:02:22.8]} 10. Be3 {[%clk 0:02:51.4]} 10... b6 {[%clk 0:01:59.9]} 11.
O-O {[%clk 0:02:47.3]} 11... Bb7 {[%clk 0:01:59.5]} 12. Rc1 {[%clk 0:02:42.4]}
12... Ne5 {[%clk 0:01:58.9]} 13. f3 {[%clk 0:02:41.6]} 13... Rc8 {[%clk
0:01:57.1]} 14. Qd2 {[%clk 0:02:41.3]} 14... d5 {[%clk 0:01:49.8]} 15. cxd5
{[%clk 0:02:26.2]} 15... exd5 {[%clk 0:01:50.7]} 16. exd5 {[%clk 0:02:13.8]}
16... Nxd5 {[%clk 0:01:43.5]} 17. Nxd5 {[%clk 0:02:08.9]} 17... Qxd5 {[%clk
0:01:42.2]} 18. Qxd5 {[%clk 0:02:04.1]} 18... Bxd5 {[%clk 0:01:43.1]} 19. Bxb6
{[%clk 0:01:34]} 19... Bxa2 {[%clk 0:01:39.8]} 20. Bxa6 {[%clk 0:01:32.8]} 20...
Ra8 {[%clk 0:01:38.9]} 21. Be2 {[%clk 0:01:12.3]} 21... Rfb8 {[%clk 0:01:19.3]}
22. Bd4 {[%clk 0:00:43.1]} 22... Ng6 {[%clk 0:01:10.7]} 23. f4 {[%clk
0:00:32.2]} 23... Bxa3 {[%clk 0:01:05.3]} 24. bxa3 {[%clk 0:00:30.6]} 24... Rxa3
{[%clk 0:01:06.2]} 25. f5 {[%clk 0:00:22.5]} 25... Nf8 {[%clk 0:00:54.5]} 26.
Rc7 {[%clk 0:00:18.9]} 26... Rd8 {[%clk 0:00:38.8]} 27. Bf2 {[%clk 0:00:14.4]}
27... Ra5 {[%clk 0:00:25.5]} 28. Ra1 {[%clk 0:00:12.9]} 28... Rd2 {[%clk
0:00:20.2]} 29. Bf3 {[%clk 0:00:07.4]} 29... Rxf5 {[%clk 0:00:13.3]} 30. Bc5
{[%clk 0:00:06.9]} 30... Rc2 {[%clk 0:00:10.7]} 31. Rc8 {[%clk 0:00:06.9]} 31...
Rfxc5 {[%clk 0:00:10.3]} 32. Rxc5 {[%clk 0:00:06.5]} 32... Rxc5 {[%clk
0:00:11.2]} 33. Rxa2 {[%clk 0:00:06.9]} 33... Rc8 {[%clk 0:00:11.2]} 34. Ra7
{[%clk 0:00:06.2]} 34... Ne6 {[%clk 0:00:11.5]} 35. Bd5 {[%clk 0:00:06.3]} 35...
Re8 {[%clk 0:00:10.4]} 36. g3 {[%clk 0:00:06]} 36... g6 {[%clk 0:00:10.3]} 37.
Kg2 {[%clk 0:00:05.4]} 37... Kg7 {[%clk 0:00:10.7]} 38. h4 {[%clk 0:00:04.3]}
38... Kf6 {[%clk 0:00:09.9]} 39. Rd7 {[%clk 0:00:03.1]} 39... Rb8 {[%clk
0:00:09.3]} 40. Kf3 {[%clk 0:00:02.9]} 40... Rb2 {[%clk 0:00:08.9]} 41. g4
{[%clk 0:00:02.6]} 41... h6 {[%clk 0:00:07.9]} 0-1

[Event "*** SCC Grand Prix: Titled Tuesday Blitz"]
[Site "Chess.com"]
[Date "2020.06.23"]
[Round "7"]
[White "Batsai"]
[Black "Nafania1"]
[Result "0-1"]
[WhiteElo "2372"]
[BlackElo "2514"]
[TimeControl "180+1"]
[EndTime "11:17:58 PDT"]
[Termination "Nafania1 won by resignation"]

1. e4 {[%clk 0:03:00.9]} 1... e6 {[%clk 0:03:00]} 2. d4 {[%clk 0:03:00.2]} 2...
d5 {[%clk 0:02:59.8]} 3. Nc3 {[%clk 0:03:00.1]} 3... h6 {[%clk 0:02:59.4]} 4.
exd5 {[%clk 0:02:52.4]} 4... exd5 {[%clk 0:02:59.1]} 5. Bd3 {[%clk 0:02:52.8]}
5... Nf6 {[%clk 0:02:58.7]} 6. Nge2 {[%clk 0:02:52]} 6... Be7 {[%clk 0:02:44.7]}
7. Bf4 {[%clk 0:02:50.4]} 7... O-O {[%clk 0:02:40.4]} 8. O-O {[%clk 0:02:48.4]}
8... c5 {[%clk 0:02:40.4]} 9. dxc5 {[%clk 0:02:44.5]} 9... Bxc5 {[%clk
0:02:40.1]} 10. Nb5 {[%clk 0:02:37.1]} 10... Nc6 {[%clk 0:02:39.9]} 11. c3
{[%clk 0:02:34.6]} 11... a6 {[%clk 0:02:30.5]} 12. Nbd4 {[%clk 0:02:28.8]} 12...
Bg4 {[%clk 0:02:27]} 13. f3 {[%clk 0:02:20.6]} 13... Bd7 {[%clk 0:02:17.9]} 14.
Kh1 {[%clk 0:02:20.1]} 14... Re8 {[%clk 0:02:17.8]} 15. Bc2 {[%clk 0:02:18.9]}
15... Qb6 {[%clk 0:02:11.5]} 16. Nb3 {[%clk 0:01:47.4]} 16... Bf8 {[%clk
0:02:09.8]} 17. Ned4 {[%clk 0:01:42.5]} 17... Ne5 {[%clk 0:02:09.9]} 18. a4
{[%clk 0:01:16]} 18... Nc4 {[%clk 0:02:05.1]} 19. a5 {[%clk 0:01:15.2]} 19...
Qd8 {[%clk 0:02:02.9]} 20. Qc1 {[%clk 0:00:51.2]} 20... Rc8 {[%clk 0:02:02.3]}
21. Nf5 {[%clk 0:00:45.7]} 21... b5 {[%clk 0:01:27.4]} 22. Nbd4 {[%clk
0:00:36.1]} 22... b4 {[%clk 0:01:18.1]} 23. cxb4 {[%clk 0:00:29.9]} 23... Bxb4
{[%clk 0:01:17.7]} 24. Bxh6 {[%clk 0:00:27.6]} 24... g6 {[%clk 0:01:02.3]} 25.
Nh4 {[%clk 0:00:08]} 25... Ne5 {[%clk 0:00:59.4]} 26. Qg5 {[%clk 0:00:05.4]}
26... Nh7 {[%clk 0:00:48.3]} 27. Qg3 {[%clk 0:00:05.3]} 27... Be7 {[%clk
0:00:45.7]} 28. Nhf5 {[%clk 0:00:03.8]} 28... Bf6 {[%clk 0:00:41.6]} 29. Bb1
{[%clk 0:00:02.1]} 29... Nc4 {[%clk 0:00:33.7]} 30. Nd6 {[%clk 0:00:02.5]} 30...
Be5 {[%clk 0:00:30.1]} 31. Bxg6 {[%clk 0:00:03.4]} 31... Bxg3 {[%clk 0:00:29.7]}
32. Bxf7+ {[%clk 0:00:03.2]} 32... Kh8 {[%clk 0:00:29]} 33. N4f5 {[%clk
0:00:03.2]} 33... Bxf5 {[%clk 0:00:22.2]} 34. Nxf5 {[%clk 0:00:04.1]} 34... Rg8
{[%clk 0:00:17.3]} 35. hxg3 {[%clk 0:00:04.2]} 35... Qf6 {[%clk 0:00:15.1]} 36.
Bxg8 {[%clk 0:00:04.1]} 36... Rxg8 {[%clk 0:00:14.4]} 37. Bg7+ {[%clk
0:00:03.3]} 37... Rxg7 {[%clk 0:00:14.7]} 38. Nxg7 {[%clk 0:00:04.2]} 38... Kxg7
{[%clk 0:00:15.1]} 39. Rfe1 {[%clk 0:00:03.3]} 39... Ng5 {[%clk 0:00:10]} 40.
Rad1 {[%clk 0:00:03.2]} 40... d4 {[%clk 0:00:08.9]} 41. b3 {[%clk 0:00:02.3]}
41... Ne3 {[%clk 0:00:08.9]} 42. Rc1 {[%clk 0:00:02.7]} 42... Nxf3 {[%clk
0:00:08.7]} 43. gxf3 {[%clk 0:00:02.5]} 43... Qxf3+ {[%clk 0:00:08.2]} 0-1

[Event "*** SCC Grand Prix: Titled Tuesday Blitz"]
[Site "Chess.com"]
[Date "2020.06.23"]
[Round "7"]
[White "PlayChessSimple"]
[Black "CalinGheorghiu"]
[Result "0-1"]
[WhiteElo "2521"]
[BlackElo "2392"]
[TimeControl "180+1"]
[EndTime "11:18:05 PDT"]
[Termination "CalinGheorghiu won by resignation"]

1. e4 {[%clk 0:03:00.9]} 1... c5 {[%clk 0:02:59.5]} 2. Nf3 {[%clk 0:02:59.4]}
2... d6 {[%clk 0:02:59.5]} 3. c3 {[%clk 0:02:58.7]} 3... Nf6 {[%clk 0:02:58.6]}
4. h3 {[%clk 0:02:59.3]} 4... Nbd7 {[%clk 0:02:53.8]} 5. Bd3 {[%clk 0:02:55.4]}
5... b6 {[%clk 0:02:51.9]} 6. Bc2 {[%clk 0:02:43.4]} 6... Bb7 {[%clk 0:02:51.8]}
7. d3 {[%clk 0:02:42.9]} 7... Rc8 {[%clk 0:02:47.2]} 8. O-O {[%clk 0:02:42.4]}
8... g6 {[%clk 0:02:45.3]} 9. Re1 {[%clk 0:02:41.7]} 9... Qc7 {[%clk 0:02:44.3]}
10. Nbd2 {[%clk 0:02:28.8]} 10... Bg7 {[%clk 0:02:42.8]} 11. Nf1 {[%clk
0:02:29.1]} 11... O-O {[%clk 0:02:41.9]} 12. Ng3 {[%clk 0:02:28.4]} 12... e5
{[%clk 0:02:36]} 13. Bg5 {[%clk 0:02:28.2]} 13... Rfe8 {[%clk 0:02:34.9]} 14.
Qd2 {[%clk 0:02:27.9]} 14... d5 {[%clk 0:02:33.5]} 15. Bh6 {[%clk 0:02:22.6]}
15... Bh8 {[%clk 0:02:32.3]} 16. Nh4 {[%clk 0:02:19.1]} 16... c4 {[%clk
0:02:22.1]} 17. dxc4 {[%clk 0:02:12.8]} 17... dxe4 {[%clk 0:02:19.7]} 18. Nxe4
{[%clk 0:02:02.2]} 18... Nxe4 {[%clk 0:02:19.4]} 19. Bxe4 {[%clk 0:02:02.9]}
19... Bxe4 {[%clk 0:02:19.7]} 20. Rxe4 {[%clk 0:02:03.8]} 20... Nf6 {[%clk
0:02:19.3]} 21. Ree1 {[%clk 0:02:00.1]} 21... Qxc4 {[%clk 0:02:13.3]} 22. Nf5
{[%clk 0:01:58.4]} 22... Qe6 {[%clk 0:02:00.8]} 23. Nd6 {[%clk 0:01:48.3]} 23...
Red8 {[%clk 0:01:52.7]} 24. Rad1 {[%clk 0:01:43.3]} 24... Rc6 {[%clk 0:01:51.7]}
25. Qg5 {[%clk 0:00:53.8]} 25... Rcxd6 {[%clk 0:01:24.4]} 26. Rxd6 {[%clk
0:00:53.7]} 26... Qxd6 {[%clk 0:01:23.9]} 27. Rxe5 {[%clk 0:00:53.8]} 27... Nd5
{[%clk 0:01:13.8]} 28. Re2 {[%clk 0:00:40.7]} 28... Bf6 {[%clk 0:01:06.9]} 29.
Qg4 {[%clk 0:00:37.2]} 29... Ne7 {[%clk 0:01:00.7]} 30. Bf4 {[%clk 0:00:34.2]}
30... Qd7 {[%clk 0:00:56.7]} 31. Qf3 {[%clk 0:00:32.6]} 31... Nf5 {[%clk
0:00:52]} 32. g3 {[%clk 0:00:33]} 32... h5 {[%clk 0:00:47.1]} 33. h4 {[%clk
0:00:32.8]} 33... Qd3 {[%clk 0:00:45.8]} 34. Qxd3 {[%clk 0:00:28.1]} 34... Rxd3
{[%clk 0:00:45.9]} 35. Re8+ {[%clk 0:00:29]} 35... Kg7 {[%clk 0:00:45.5]} 36.
Ra8 {[%clk 0:00:29.9]} 36... Rd7 {[%clk 0:00:40.8]} 37. Bb8 {[%clk 0:00:29.5]}
37... a5 {[%clk 0:00:36.2]} 38. Ba7 {[%clk 0:00:27]} 38... Rb7 {[%clk
0:00:33.3]} 39. b4 {[%clk 0:00:25.2]} 39... Bxc3 {[%clk 0:00:31.5]} 40. b5
{[%clk 0:00:25.6]} 40... Nd4 {[%clk 0:00:24]} 41. a4 {[%clk 0:00:25.6]} 41...
Ne6 {[%clk 0:00:23.4]} 42. Bb8 {[%clk 0:00:25.6]} 42... Bd4 {[%clk 0:00:23.3]}
43. Bd6 {[%clk 0:00:21.9]} 43... Bc5 {[%clk 0:00:22]} 44. Be5+ {[%clk
0:00:21.6]} 44... f6 {[%clk 0:00:22.5]} 45. Bc3 {[%clk 0:00:20.3]} 45... Rd7
{[%clk 0:00:22.8]} 46. Rc8 {[%clk 0:00:20]} 46... Kf7 {[%clk 0:00:18]} 47. Kf1
{[%clk 0:00:19.2]} 47... Bb4 {[%clk 0:00:15.4]} 48. Bxb4 {[%clk 0:00:14.2]}
48... axb4 {[%clk 0:00:15.1]} 49. a5 {[%clk 0:00:15.1]} 49... bxa5 {[%clk
0:00:14.7]} 50. b6 {[%clk 0:00:16]} 50... Rb7 {[%clk 0:00:13.9]} 51. Rc6 {[%clk
0:00:15.9]} 51... b3 {[%clk 0:00:13.6]} 0-1